fUST/lending_fUST_20251202
["ID","MTS","AMOUNT","RATE_DAILY","PERIOD"]
[395328481,1764631848562,-2488.28748127,0.00016012,2]
[395328482,1764631848572,-3000.0,0.00016012,2]
[395328483,1764631848581,-3000.0,0.00016012,2]
[395328484,1764631848591,-150.0,0.00016052,2]
[395328485,1764631848600,-300.85884932,0.00016109,2]
[395328486,1764631848609,-1600.0,0.00016164,2]
[395328487,1764631848619,-800.0,0.00016179,2]
[395328488,1764631848629,-519.08694112,0.00016212,2]
[395328489,1764631848639,-2000.0,0.00016219,7]
[395328490,1764631848651,-500.0,0.0001625,2]
[395328491,1764631848661,-344.91441206,0.00016392,2]
[395328492,1764631848671,-454.2,0.00016438,2]
[395328493,1764631848680,-660.0,0.00016438,2]
[395328494,1764631848689,-589.72676027,0.00016438,2]
[395328495,1764631848699,-200.0,0.00016438,3]
[395328496,1764631848708,-200.0,0.00016438,3]
[395328497,1764631848717,-200.0,0.00016438,3]
[395328498,1764631848727,-200.0,0.00016438,3]
[395328499,1764631848736,-340.25217286,0.00016438,3]
[395328500,1764631848745,-154.20779938,0.00016438,2]
[395328501,1764631848755,-151.0,0.00016438,2]
[395328502,1764631848764,-151.0,0.00016438,2]
[395328503,1764631848773,-151.0,0.00016438,2]
[395328504,1764631848783,-151.0,0.00016438,2]
[395328505,1764631848792,-151.0,0.00016438,2]
[395328506,1764631848801,-151.0,0.00016438,2]
[395328507,1764631848811,-151.0,0.00016438,2]
[395328508,1764631848820,-151.0,0.00016438,2]
[395328509,1764631849020,-151.0,0.00016438,2]
[395328510,1764631849039,-151.0,0.00016438,2]
[395328511,1764631849048,-151.0,0.00016438,2]
[395328512,1764631849057,-151.0,0.00016438,2]
[395328513,1764631849067,-151.0,0.00016438,2]
[395328514,1764631849076,-151.0,0.00016438,2]
[395328515,1764631849085,-151.0,0.00016438,2]
[395328516,1764631849094,-151.0,0.00016438,2]
[395328517,1764631849103,-151.0,0.00016438,2]
[395328518,1764631849113,-161.594239,0.00016438,2]
[395328519,1764631849123,-163.41913162,0.00016438,2]
[395328520,1764631849132,-500.0,0.00016438,2]
[395328521,1764631849141,-3000.0,0.00016438,2]
[395328522,1764631849151,-650.04842073,0.00016438,2]
[395328523,1764631849160,-3000.0,0.00016438,2]
[395328524,1764631849169,-983.440286,0.00016438,2]
[395328525,1764631849179,-3000.0,0.00016438,2]
[395328526,1764631849188,-3000.0,0.00016438,2]
[395328527,1764631849197,-301.6770173,0.00016438,2]
[395328528,1764631849207,-258.82513423,0.00016438,2]
[395328529,1764631849216,-527.58989134,0.00016452,2]
[395328530,1764631849226,-500.0,0.00016455,2]
[395328531,1764631849235,-160.0,0.000165,3]
[395328532,1764631849244,-160.0,0.000165,3]
[395328533,1764631849253,-842.32,0.000165,3]
[395328534,1764631849262,-500.0,0.00016524,2]
[395328535,1764631849271,-2000.0,0.00016534,7]
[395328536,1764631849281,-3500.0,0.0001656,2]
[395328537,1764631849290,-3500.0,0.0001656,2]
[395328538,1764631849299,-3500.0,0.0001656,2]
[395328539,1764631849309,-3500.0,0.0001656,2]
[395328540,1764631849319,-800.0,0.00016657,2]
[395328541,1764631849328,-454.2,0.00016712,2]
[395328542,1764631849341,-500.0,0.00016798,2]
[395328543,1764631849350,-165.0,0.000168,4]
[395328544,1764631849359,-166.40972096,0.000168,5]
[395328545,1764631849368,-1171.0,0.000168,2]
[395328546,1764631849378,-2000.0,0.00016849,7]
[395328547,1764631849388,-344.0,0.0001688,2]
[395328548,1764631849399,-231.48334236,0.000169,2]
[395328549,1764631849408,-231.48334231,0.000169,2]
[395328550,1764631849420,-231.48334231,0.000169,2]
[395328551,1764631849430,-231.48334231,0.000169,2]
[395328552,1764631849439,-231.48334231,0.000169,2]
[395328553,1764631849449,-231.48334231,0.000169,2]
[395328554,1764631849459,-231.48334231,0.000169,2]
[395328555,1764631849468,-231.48334231,0.000169,2]
[395328556,1764631849478,-231.48334231,0.000169,2]
[395328557,1764631849487,-357.6762453,0.0001694,2]
[395328558,1764631849496,-454.2,0.00016986,2]
[395328559,1764631849505,-760.0,0.00016986,2]
[395328560,1764631849515,-3500.0,0.00016986,2]
[395328561,1764631849524,-605.856796,0.00016986,2]
[395328562,1764631849534,-3500.0,0.00016986,2]
[395328563,1764631849544,-3500.0,0.00016986,2]
[395328564,1764631849554,-500.0,0.00016986,2]
[395328565,1764631849563,-20532.59560314,0.00016999,2]
[395328566,1764631849573,-202.84,0.00016999,2]
[395328567,1764631849583,-500.32690956,0.00017,2]
[395328568,1764631849592,-201.83736818,0.00017,3]
[395328569,1764631849602,-70000.0,0.00017,2]
[395328570,1764631849612,-105659.04383079,0.00017,2]
[395328571,1764631849622,-863.85580439,0.00017,2]
[395328572,1764631849632,-353.71323156,0.00017,7]
[395328573,1764631849641,-399.0,0.00017057,2]
[395328574,1764631849651,-4000.0,0.00017108,2]
[395328575,1764631849660,-4000.0,0.00017108,2]
[395328576,1764631849670,-4000.0,0.00017108,2]
[395328577,1764631849681,-4000.0,0.00017108,2]
[395328578,1764631849690,-2000.0,0.00017164,7]
[395328579,1764631849699,-21328.3691521,0.0001717,2]
[395328580,1764631849708,-470.0,0.00017232,2]
[395328581,1764631849718,-1053.92,0.0001726,2]
[395328582,1764631849728,-500.0,0.0001726,2]
[395328583,1764631849737,-1252.73255956,0.0001726,2]
[395328584,1764631849746,-454.2,0.0001726,2]
[395328585,1764631849755,-2400.0,0.0001726,2]
[395328586,1764631849765,-800.0,0.00017305,2]
[395328587,1764631849774,-231.48334231,0.00017408,2]
[395328588,1764631849784,-270.0,0.00017411,2]
[395328589,1764631849793,-2000.0,0.00017479,7]
[395328590,1764631849802,-1375.453,0.00017495,2]
[395328591,1764631849811,-170.878,0.00017495,2]
[395328592,1764631849820,-414.0,0.00017495,2]
[395328593,1764631849830,-12000.0,0.000175,2]
[395328594,1764631849839,-150.0,0.00017512,2]
[395328595,1764631849848,-1053.92,0.00017534,2]
[395328596,1764631849858,-300.67187732,0.00017534,2]
[395328597,1764631849867,-3000.0,0.00017534,7]
[395328598,1764631849876,-1000.0,0.00017534,2]
[395328599,1764631849886,-492.0,0.00017534,2]
[395328600,1764631849895,-454.2,0.00017534,2]
[395328601,1764631849905,-860.0,0.00017534,2]
[395328602,1764631849915,-4000.0,0.00017534,2]
[395328603,1764631849924,-4000.0,0.00017534,2]
[395328604,1764631849934,-4000.0,0.00017534,2]
[395328605,1764631849943,-500.0,0.00017534,2]
[395328606,1764631849953,-2126.47416744,0.000176,2]
[395328607,1764631849962,-327.0,0.00017602,2]
[395328608,1764631849972,-337.39345664,0.00017626,2]
[395328609,1764631849982,-4500.0,0.00017656,2]
[395328610,1764631849992,-4500.0,0.00017656,2]
[395328611,1764631850001,-4500.0,0.00017656,2]
[395328612,1764631850011,-800.0,0.00017681,2]
[395328613,1764631850021,-570.0,0.0001779,3]
[395328614,1764631850031,-2000.0,0.00017795,7]
[395328615,1764631850040,-250000.0,0.000178,3]
[395328616,1764631850050,-1053.92,0.00017808,2]
[395328617,1764631850060,-454.2,0.00017808,2]
[395328618,1764631850071,-500.0,0.00017808,2]
[395328619,1764631850080,-500.0,0.00017808,2]
[395328620,1764631850090,-500.0,0.00017808,2]
[395328621,1764631850099,-500.0,0.00017808,2]
[395328622,1764631850108,-500.0,0.00017808,2]
[395328623,1764631850118,-500.0,0.00017808,2]
[395328624,1764631850127,-500.0,0.00017808,2]
[395328625,1764631850137,-500.0,0.00017808,2]
[395328626,1764631850146,-500.0,0.00017808,2]
[395328627,1764631850155,-384.04874515,0.00017808,2]
[395328628,1764631850164,-2573.885,0.00017808,2]
[395328629,1764631850174,-671.0,0.0001799,3]
[395328630,1764631850183,-8683.79199491,0.00018,2]
[395328631,1764631850208,-370.91026638,0.00017488,2]
[395328632,1764631850217,-5376.4589101,0.00018,2]
[395328633,1764631850229,-2205.69849881,0.00018,2]
[395328635,1764631850381,-394.37224389,0.00018,2]
[395328636,1764631850394,-1591.04300781,0.00018,2]
[395328637,1764631850467,-1016.89456181,0.00011125,2]
[395328638,1764631850483,-1016.89456181,0.00011175,2]
[395328639,1764631850499,-142727.45185588,0.00018,2]
[395328640,1764631850512,-29872.12094916,0.00018,2]
[395328641,1764631850526,-4109.0,0.00018,2]
[395328642,1764631850539,-1000.0,0.00018,2]
[395328644,1764631850554,-333.0,0.00018,2]
[395328647,1764631850568,-260.33078741,0.00018,2]
[395328649,1764631850583,-336.3617487,0.00018,2]
[395328652,1764631850598,-333.0,0.00018,2]
[395328654,1764631850612,-345.94903301,0.00018,2]
[395328657,1764631850625,-166.0,0.00018,2]
[395328659,1764631850637,-152.0,0.00018,2]
[395328662,1764631850651,-152.0,0.00018,2]
[395328664,1764631850665,-152.0,0.00018,2]
[395328666,1764631850676,-152.0,0.00018,2]
[395328669,1764631850689,-152.0,0.00018,2]
[395328671,1764631850702,-152.0,0.00018,2]
[395328673,1764631850716,-152.0,0.00018,2]
[395328674,1764631850729,-152.0,0.00018,2]
[395328676,1764631850744,-152.0,0.00018,2]
[395328677,1764631850758,-207.8908245,0.00018,2]
[395328678,1764631850773,-152.0,0.00018,2]
[395328680,1764631850784,-152.0,0.00018,2]
[395328681,1764631850795,-152.0,0.00018,2]
[395328682,1764631850809,-152.0,0.00018,2]
[395328683,1764631850823,-152.0,0.00018,2]
[395328684,1764631850834,-152.0,0.00018,2]
[395328685,1764631850846,-152.0,0.00018,2]
[395328686,1764631850859,-152.0,0.00018,2]
[395328687,1764631850871,-152.0,0.00018,2]
[395328688,1764631850882,-152.0,0.00018,2]
[395328689,1764631850894,-152.0,0.00018,2]
[395328690,1764631850911,-152.0,0.00018,2]
[395328691,1764631850923,-152.0,0.00018,2]
[395328692,1764631850935,-195.81339988,0.00018,2]
[395328693,1764631850946,-167.0,0.00018,2]
[395328694,1764631850958,-167.0,0.00018,2]
[395328695,1764631850969,-167.0,0.00018,2]
[395328696,1764631850980,-166.0,0.00018,2]
[395328697,1764631850993,-161.15591244,0.00018,2]
[395328698,1764631851004,-166.0,0.00018,2]
[395328699,1764631851016,-152.0,0.00018,2]
[395328700,1764631851027,-166.0,0.00018,2]
[395328701,1764631851038,-152.0,0.00018,2]
[395328702,1764631851051,-152.0,0.00018,2]
[395328703,1764631851063,-166.0,0.00018,2]
[395328704,1764631851075,-152.0,0.00018,2]
[395328705,1764631851087,-152.0,0.00018,2]
[395328706,1764631851099,-152.0,0.00018,2]
[395328707,1764631851110,-152.0,0.00018,2]
[395328708,1764631851122,-152.0,0.00018,2]
[395328709,1764631851134,-152.0,0.00018,2]
[395328710,1764631851146,-152.0,0.00018,2]
[395328711,1764631851157,-152.0,0.00018,2]
[395328712,1764631851169,-166.0,0.00018,2]
[395328713,1764631851181,-166.0,0.00018,2]
[395328714,1764631851193,-166.26305524,0.00018,2]
[395328715,1764631851204,-353.71323156,0.00018,3]
[395328716,1764631851216,-156.0,0.00018,2]
[395328717,1764631851227,-156.0,0.00018,2]
[395328718,1764631851239,-156.0,0.00018,2]
[395328719,1764631851250,-156.0,0.00018,2]
[395328720,1764631851262,-156.0,0.00018,2]
[395328721,1764631851274,-156.0,0.00018,2]
[395328722,1764631851285,-156.0,0.00018,2]
[395328723,1764631851297,-156.0,0.00018,2]
[395328724,1764631851311,-156.0,0.00018,2]
[395328725,1764631851322,-156.0,0.00018,2]
[395328726,1764631851336,-156.0,0.00018,2]
[395328727,1764631851352,-156.0,0.00018,2]
[395328728,1764631851365,-156.0,0.00018,2]
[395328729,1764631851378,-163.69846336,0.00018,2]
[395328730,1764631851390,-167.0,0.00018,2]
[395328731,1764631851402,-162.19370157,0.00018,2]
[395328732,1764631851415,-332.0,0.00018,2]
[395328733,1764631851427,-333.0,0.00018,2]
[395328734,1764631851440,-333.0,0.00018,2]
[395328735,1764631851451,-333.0,0.00018,2]
[395328736,1764631851463,-333.0,0.00018,2]
[395328737,1764631851476,-333.0,0.00018,2]
[395328738,1764631851488,-333.0,0.00018,2]
[395328739,1764631851500,-333.0,0.00018,2]
[395328740,1764631851512,-384.63394623,0.00018036,2]
[395328741,1764631851523,-1053.92,0.00018082,2]
[395328742,1764631851536,-454.2,0.00018082,2]
[395328743,1764631851547,-960.0,0.00018082,2]
[395328744,1764631851558,-4500.0,0.00018082,2]
[395328745,1764631851571,-4500.0,0.00018082,2]
[395328746,1764631851582,-4500.0,0.00018082,2]
[395328747,1764631851594,-500.0,0.00018082,2]
[395328748,1764631851606,-2000.0,0.0001811,7]
[395328749,1764631851619,-5000.0,0.00018204,2]
[395328750,1764631851631,-5000.0,0.00018204,2]
[395328751,1764631851643,-5000.0,0.00018204,2]
[395328752,1764631851655,-800.0,0.00018256,2]
[395328753,1764631851668,-800.0,0.00018268,2]
[395328754,1764631851680,-353.71323156,0.000183,3]
[395328755,1764631851692,-800.0,0.00018323,2]
[395328756,1764631851703,-1053.92,0.00018356,2]
[395328757,1764631851716,-454.2,0.00018356,2]
[395328758,1764631851728,-1063.82868409,0.00018356,2]
[395328759,1764631851740,-2000.0,0.00018425,7]
[395328760,1764631851752,-800.0,0.00018439,2]
[395328761,1764631851764,-596.3856,0.00018493,2]
[395328762,1764631851776,-398.86540225,0.00018584,2]
[395328763,1764631851788,-1500.0,0.000186,2]
[395328764,1764631851800,-1500.0,0.000186,2]
[395328765,1764631851812,-1500.0,0.000186,2]
[395328766,1764631851824,-1500.0,0.000186,2]
[395328767,1764631851836,-1500.0,0.000186,2]
[395328768,1764631851848,-1500.0,0.000186,2]
[395328769,1764631851860,-1500.0,0.000186,2]
[395328770,1764631851872,-1500.0,0.000186,2]
[395328771,1764631851884,-1500.0,0.000186,2]
[395328772,1764631851897,-1500.0,0.000186,2]
[395328773,1764631851909,-1000.0,0.000186,2]
[395328774,1764631851921,-1043.6,0.000186,2]
[395328775,1764631851933,-376.00271353,0.00018613,2]
[395328776,1764631851944,-1053.92,0.0001863,2]
[395328777,1764631851956,-3000.0,0.0001863,7]
[395328778,1764631851968,-454.2,0.0001863,2]
[395328779,1764631851980,-1060.0,0.0001863,2]
[395328780,1764631851991,-1680.9371724,0.0001863,2]
[395328781,1764631852003,-5000.0,0.0001863,2]
[395328782,1764631852015,-5000.0,0.0001863,2]
[395328783,1764631852025,-500.0,0.0001863,2]
[395328784,1764631852034,-153.0,0.0001863,2]
[395328785,1764631852043,-800.0,0.00018656,2]
[395328786,1764631852053,-800.0,0.00018729,2]
[395328787,1764631852063,-2000.0,0.0001874,7]
[395328788,1764631852072,-5500.0,0.00018752,2]
[395328789,1764631852081,-785.83824884,0.00018752,2]
[395328790,1764631852090,-5500.0,0.00018752,2]
[395328791,1764631852100,-151.19674669,0.00018795,2]
[395328792,1764631852109,-10154.77651856,0.000188,2]
[395328793,1764631852118,-800.0,0.00018839,2]
[395328794,1764631852128,-164146.31721055,0.0001888,2]
[395328795,1764631852215,-47.46265185,0.0001888,2]
[395328796,1764631852232,-181.58,0.0001644,2]
[395328797,1764631852242,-113.55886484,0.0001888,2]
[395328802,1764631862364,250.0,0.0002,30]
[395328804,1764631931675,247.99052516,9.111e-05,2]
[395328805,1764632054296,497.43063642,9.198e-05,2]
[395328806,1764632112434,10211.8411823,8.643e-05,2]
[395328808,1764632231355,497.43063642,9.198e-05,2]
[395328809,1764632239397,497.43063642,9.198e-05,2]
[395330244,1764632547729,-2365233.0538,0.00036211,30]
[395330245,1764632547755,-1713.84551847,0.00036211,120]
[395330246,1764632547780,-250.0,0.00036211,30]
[395330247,1764632547803,-412.0,0.00036211,30]
[395330248,1764632547828,-346183.82183365,0.00036211,20]
[395330249,1764632547854,-500.0,0.00036211,60]
[395330250,1764632547880,-500.0,0.00036211,60]
[395330251,1764632547905,-500.0,0.00036211,60]
[395330252,1764632547929,-500.0,0.00036211,60]
[395330253,1764632547953,-500.0,0.00036211,60]
[395330254,1764632547979,-500.0,0.00036211,60]
[395330255,1764632548003,-247.42,0.00036211,60]
[395330256,1764632548026,-500.0,0.00036211,60]
[395330257,1764632548051,-546.18236265,0.00036211,60]
[395330258,1764632548075,-12159.1,0.00036211,120]
[395330259,1764632548100,-636.45023695,0.00036211,120]
[395330260,1764632548125,-500.0,0.00036211,60]
[395330261,1764632548150,-535.73,0.00036211,60]
[395330262,1764632548174,-1205.91762989,0.00036211,120]
[395330263,1764632548198,-6588.46082,0.00036211,30]
[395330264,1764632548223,-500.11235767,0.00036211,120]
[395330265,1764632548248,-601.2372458,0.00036211,120]
[395330266,1764632548272,-1000.0,0.00036211,120]
[395330267,1764632548297,-1041.0,0.00036211,120]
[395330268,1764632548321,-187111.44678853,0.00036211,30]
[395330269,1764632548346,-274.88958678,0.00036211,120]
[395330270,1764632548371,-500.0,0.00036211,60]
[395330271,1764632548634,-500.0,0.00036211,60]
[395330272,1764632548660,-500.0,0.00036211,60]
[395330273,1764632548686,-500.0,0.00036211,60]
[395330274,1764632548710,-500.0,0.00036211,60]
[395330275,1764632548734,-501.92129944,0.00036211,60]
[395330276,1764632548758,-500.0,0.00036211,60]
[395330277,1764632548784,-502.00475854,0.00036211,60]
[395330278,1764632548809,-236.45418752,0.00036211,60]
[395330279,1764632548834,-301.21334262,0.00036211,60]
[395330280,1764632548858,-500.0,0.00036211,60]
[395330281,1764632548881,-503.45392755,0.00036211,60]
[395330282,1764632548905,-500.0,0.00036211,60]
[395330283,1764632548928,-500.0,0.00036211,60]
[395330284,1764632548952,-500.0,0.00036211,60]
[395330285,1764632548977,-500.0,0.00036211,60]
[395330286,1764632549000,-500.0,0.00036211,60]
[395330287,1764632549024,-228.0878752,0.00036211,60]
[395330288,1764632549048,-500.0,0.00036211,60]
[395330289,1764632549071,-500.0,0.00036211,60]
[395330290,1764632549095,-500.0,0.00036211,60]
[395330292,1764632549120,-519.21393158,0.00036211,60]
[395330294,1764632549144,-500.0,0.00036211,60]
[395330295,1764632549169,-500.0,0.00036211,60]
[395330296,1764632549192,-500.0,0.00036211,60]
[395330297,1764632549217,-501.59762758,0.00036211,60]
[395330298,1764632549241,-500.0,0.00036211,60]
[395330299,1764632549299,-543.09710499,0.00036211,60]
[395330300,1764632549344,-500.0,0.00036211,60]
[395330301,1764632549393,-500.0,0.00036211,60]
[395330302,1764632549443,-500.0,0.00036211,60]
[395330303,1764632549490,-500.0,0.00036211,60]
[395330304,1764632549536,-500.0,0.00036211,60]
[395330305,1764632549588,-500.0,0.00036211,60]
[395330306,1764632549638,-500.0,0.00036211,60]
[395330307,1764632549688,-500.0,0.00036211,60]
[395330308,1764632549734,-500.0,0.00036211,60]
[395330309,1764632549782,-500.0,0.00036211,60]
[395330310,1764632549829,-500.0,0.00036211,60]
[395330311,1764632549881,-500.0,0.00036211,60]
[395330312,1764632549933,-500.0,0.00036211,60]
[395330313,1764632549981,-500.0,0.00036211,60]
[395330314,1764632550027,-500.0,0.00036211,60]
[395330315,1764632550072,-500.0,0.00036211,60]
[395330316,1764632550120,-516.38817209,0.00036211,60]
[395330317,1764632550165,-500.21837044,0.00036211,60]
[395330318,1764632550215,-500.0,0.00036211,60]
[395330319,1764632550263,-500.0,0.00036211,60]
[395330320,1764632550311,-501.24471602,0.00036211,60]
[395330321,1764632550359,-500.06055328,0.00036211,60]
[395330322,1764632550407,-500.0,0.00036211,60]
[395330323,1764632550457,-500.0,0.00036211,60]
[395330324,1764632550505,-500.0,0.00036211,60]
[395330325,1764632550559,-500.0,0.00036211,60]
[395330326,1764632550610,-500.0,0.00036211,60]
[395330327,1764632550661,-500.0,0.00036211,60]
[395330328,1764632550710,-500.0,0.00036211,60]
[395330329,1764632550761,-500.0,0.00036211,60]
[395330330,1764632550813,-500.0,0.00036211,60]
[395330331,1764632550862,-500.0,0.00036211,60]
[395330332,1764632550909,-500.0,0.00036211,60]
[395330333,1764632550957,-500.0,0.00036211,60]
[395330334,1764632551005,-376.28175464,0.00036211,60]
[395330335,1764632551052,-500.0,0.00036211,60]
[395330336,1764632551101,-500.0,0.00036211,60]
[395330337,1764632551145,-500.0,0.00036211,60]
[395330338,1764632551192,-503.60097941,0.00036211,60]
[395330339,1764632551240,-500.51,0.00036211,60]
[395330340,1764632551287,-500.51,0.00036211,60]
[395330341,1764632551336,-500.51,0.00036211,60]
[395330342,1764632551385,-500.0,0.00036211,60]
[395330343,1764632551432,-500.51,0.00036211,60]
[395330344,1764632551480,-504.58542691,0.00036211,60]
[395330345,1764632551527,-500.51,0.00036211,60]
[395330346,1764632551575,-500.51,0.00036211,60]
[395330347,1764632551622,-500.0,0.00036211,60]
[395330348,1764632551676,-500.51,0.00036211,60]
[395330349,1764632551722,-500.0,0.00036211,60]
[395330350,1764632551771,-500.51,0.00036211,60]
[395330351,1764632551820,-500.0,0.00036211,60]
[395330352,1764632551869,-500.51,0.00036211,60]
[395330353,1764632551918,-500.0,0.00036211,60]
[395330354,1764632551962,-500.0,0.00036211,60]
[395330355,1764632552007,-500.51,0.00036211,60]
[395330356,1764632552055,-500.0,0.00036211,60]
[395330357,1764632552103,-500.51,0.00036211,60]
[395330358,1764632552148,-500.0,0.00036211,60]
[395330359,1764632552195,-500.51,0.00036211,60]
[395330360,1764632552246,-500.0,0.00036211,60]
[395330361,1764632552292,-500.51,0.00036211,60]
[395330362,1764632552339,-500.0,0.00036211,60]
[395330363,1764632552385,-500.51,0.00036211,60]
[395330364,1764632552432,-500.0,0.00036211,60]
[395330365,1764632552477,-500.51,0.00036211,60]
[395330366,1764632552521,-500.0,0.00036211,60]
[395330367,1764632552565,-500.0,0.00036211,60]
[395330368,1764632552776,-500.51,0.00036211,60]
[395330369,1764632552824,-500.0,0.00036211,60]
[395330370,1764632552874,-500.51,0.00036211,60]
[395330371,1764632552922,-500.0,0.00036211,60]
[395330372,1764632552970,-500.51,0.00036211,60]
[395330373,1764632553015,-500.0,0.00036211,60]
[395330374,1764632553062,-500.51,0.00036211,60]
[395330375,1764632553109,-500.0,0.00036211,60]
[395330376,1764632553156,-500.51,0.00036211,60]
[395330377,1764632553208,-500.0,0.00036211,60]
[395330378,1764632553254,-500.51,0.00036211,60]
[395330379,1764632553300,-389.58824473,0.00036211,60]
[395330380,1764632553350,-500.51,0.00036211,60]
[395330381,1764632553404,-500.51,0.00036211,60]
[395330382,1764632553453,-500.6864517,0.00036211,60]
[395330383,1764632553501,-500.0,0.00036211,60]
[395330384,1764632553552,-500.0,0.00036211,60]
[395330385,1764632553604,-500.0,0.00036211,60]
[395330386,1764632553662,-500.0,0.00036211,60]
[395330387,1764632553712,-500.0,0.00036211,60]
[395330388,1764632553763,-500.0,0.00036211,60]
[395330389,1764632553814,-500.0,0.00036211,60]
[395330390,1764632553864,-500.0,0.00036211,60]
[395330391,1764632553912,-500.0,0.00036211,60]
[395330392,1764632553957,-500.0,0.00036211,60]
[395330393,1764632554003,-500.0,0.00036211,60]
[395330394,1764632554047,-500.0,0.00036211,60]
[395330395,1764632554092,-658.36,0.00036211,60]
[395330396,1764632554137,-658.36,0.00036211,60]
[395330397,1764632554181,-500.0,0.00036211,60]
[395330398,1764632554227,-258.20210824,0.00036211,60]
[395330399,1764632554271,-658.36,0.00036211,60]
[395330400,1764632554317,-260.71115265,0.00036211,60]
[395330401,1764632554361,-658.36,0.00036211,60]
[395330402,1764632554405,-658.36,0.00036211,60]
[395330403,1764632554452,-658.36,0.00036211,60]
[395330404,1764632554495,-500.0,0.00036211,60]
[395330405,1764632554541,-658.36,0.00036211,60]
[395330406,1764632554590,-658.36,0.00036211,60]
[395330407,1764632554638,-658.36,0.00036211,60]
[395330408,1764632554684,-658.36,0.00036211,60]
[395330409,1764632554727,-658.36,0.00036211,60]
[395330410,1764632554772,-658.36,0.00036211,60]
[395330411,1764632554816,-658.36,0.00036211,60]
[395330412,1764632554862,-658.36,0.00036211,60]
[395330413,1764632554906,-658.36,0.00036211,60]
[395330414,1764632554952,-500.0,0.00036211,60]
[395330415,1764632554996,-658.36,0.00036211,60]
[395330416,1764632555042,-500.0,0.00036211,60]
[395330417,1764632555088,-658.36,0.00036211,60]
[395330418,1764632555131,-217.83055646,0.00036211,60]
[395330419,1764632555177,-658.36,0.00036211,60]
[395330420,1764632555221,-658.36,0.00036211,60]
[395330421,1764632555265,-658.36,0.00036211,60]
[395330422,1764632555310,-658.36,0.00036211,60]
[395330423,1764632555354,-658.36,0.00036211,60]
[395330424,1764632555398,-658.36,0.00036211,60]
[395330425,1764632555441,-658.36054944,0.00036211,60]
[395330426,1764632555485,-500.0,0.00036211,60]
[395330427,1764632555528,-500.0,0.00036211,60]
[395330428,1764632555575,-500.0,0.00036211,60]
[395330429,1764632555621,-500.0,0.00036211,60]
[395330430,1764632555670,-500.0,0.00036211,60]
[395330431,1764632555715,-500.0,0.00036211,60]
[395330432,1764632555761,-500.0,0.00036211,60]
[395330433,1764632555807,-500.0,0.00036211,60]
[395330434,1764632555852,-500.0,0.00036211,60]
[395330435,1764632555898,-500.0,0.00036211,60]
[395330436,1764632555940,-500.0,0.00036211,60]
[395330437,1764632555985,-500.0,0.00036211,60]
[395330438,1764632556027,-357.685017,0.00036211,60]
[395330439,1764632556072,-613.45930474,0.00036211,60]
[395330440,1764632556115,-676.7,0.00036211,60]
[395330441,1764632556158,-676.7,0.00036211,60]
[395330442,1764632556202,-676.7,0.00036211,60]
[395330443,1764632556246,-676.7,0.00036211,60]